bitfinex/quotes_SOLUSD_20220109
["timestamp","ask_amount","ask_price","bid_price","bid_amount"]
[1641699861521,19.63549969,142.45,142.33,23.5863]
[1641699861722,10.5414,142.41,142.33,23.5863]
[1641699862728,3.0,142.4,142.33,23.5863]
[1641699862929,10.5437,142.37,142.31,78.4534]
[1641699863127,18.4337,142.37,142.3,47.9446]
[1641699863327,18.4337,142.37,142.29,10.03]
[1641699863853,7.89,142.37,142.29,10.03]
[1641699864053,10.5409,142.38,142.29,10.03]
[1641699864455,7.294,142.4,142.29,10.03]
[1641699864654,7.294,142.4,142.29,20.5709]
[1641699865155,17.8334,142.4,142.29,10.03]
[1641699866253,7.294,142.4,142.29,10.03]
[1641699866655,7.294,142.4,142.29,20.571]
[1641699867054,7.294,142.4,142.3,3.0]
[1641699867254,7.294,142.4,142.3,10.03]
[1641699867856,7.294,142.4,142.31,3.0]
[1641699868057,7.294,142.4,142.32,31.31525571]
[1641699868357,7.294,142.4,142.33,0.25]
[1641699868557,7.294,142.4,142.33,10.28]
[1641699868757,0.0001,142.4,142.33,13.54]
[1641699868957,0.0001,142.4,142.34,1.65345313]
[1641699869157,0.0001,142.4,142.37,10.5327]
[1641699870559,0.0001,142.4,142.38,3.0]
[1641699871568,0.0001,142.4,142.37,3.0]
[1641699871967,0.0001,142.4,142.38,3.03219995]
[1641699873570,14.64288354,142.5,142.38,3.03219995]
[1641699873773,3.0,142.49,142.38,3.03219995]
[1641699873975,10.5334,142.49,142.38,13.56599995]
[1641699874173,3.73356396,142.52,142.39,10.03]
[1641699874373,3.73356396,142.52,142.39,15.878]
[1641699874574,3.73356396,142.52,142.4,4.65345313]
[1641699874776,3.73356396,142.52,142.41,10.03]
[1641699875375,95.33979665,142.55,142.41,10.03]
[1641699875579,95.33979665,142.55,142.42,73.9692]
[1641699875777,95.33979665,142.55,142.43,27.95170897]
[1641699875976,20.23879665,142.55,142.43,27.95170897]
[1641699877381,10.5296,142.54,142.45,10.5286]
[1641699877580,10.5296,142.54,142.43,27.95170897]
[1641699877783,10.5296,142.54,142.42,83.9992]
[1641699877982,10.5296,142.54,142.43,3.0]
[1641699878887,10.5296,142.54,142.42,94.5306]
[1641699881294,34.9069,142.54,142.42,83.9992]
[1641699881492,36.11612772,142.54,142.42,83.9992]
[1641699883308,46.14612772,142.54,142.42,73.9692]
[1641699884209,47.54612772,142.54,142.42,73.9692]
[1641699884408,1.4,142.54,142.43,10.03]
[1641699884808,1.4,142.54,142.44,3.0]
[1641699885008,23.1521,142.57,142.44,13.03]
[1641699885209,23.1521,142.57,142.45,3.0]
[1641699885711,23.1521,142.57,142.46,34.05239833]
[1641699885911,23.1521,142.57,142.5,10.5251]
[1641699887211,23.1521,142.57,142.49,10.5263]
[1641699887411,23.1521,142.57,142.47,76.6227]
[1641699887616,1.20922772,142.56,142.46,10.03]
[1641699888012,23.1521,142.57,142.46,10.03]
[1641699888412,24.36132772,142.57,142.46,10.03]
[1641699888612,10.534,142.51,142.46,10.03]
[1641699889812,10.534,142.51,142.42,10.03]
[1641699890016,11.74322772,142.51,142.39,102.0328]
[1641699890219,34.88692772,142.51,142.39,102.0328]
[1641699890619,33.6777,142.51,142.39,102.0328]
[1641699890821,33.6777,142.51,142.39,112.5665]
[1641699894125,23.1437,142.51,142.4,13.03]
[1641699894325,23.1437,142.51,142.44,10.5301]
[1641699894725,23.1437,142.51,142.41,22.8492]
[1641699895324,23.1437,142.51,142.44,10.5301]
[1641699897527,23.1437,142.51,142.41,57.9463]
[1641699897728,33.6743,142.51,142.41,32.8792]
[1641699898727,33.6743,142.51,142.41,20.5622]
[1641699898929,33.6743,142.51,142.41,10.03]
[1641699899331,10.5306,142.51,142.41,10.03]
[1641699899531,10.53,142.52,142.41,10.03]
[1641699899932,10.53,142.52,142.41,20.562]
[1641699900131,10.53,142.52,142.42,3.0]
[1641699900333,10.53,142.52,142.43,25.70917743]
[1641699900532,34.7927,142.53,142.43,25.70917743]
[1641699900730,10.5292,142.53,142.43,35.73917743]
[1641699900931,20.53807532,142.58,142.47,10.5279]
[1641699901136,44.04067532,142.58,142.47,10.5279]
[1641699901333,79.13487532,142.58,142.47,10.5279]
[1641699901534,10.5275,142.56,142.47,10.5279]
[1641699901734,44.04067532,142.58,142.46,10.03]
[1641699901934,38.14533759,142.58,142.46,10.03]
[1641699902133,1.20672869,142.57,142.46,10.03]
[1641699902334,35.1082,142.53,142.46,10.03]
[1641699902734,10.532,142.5,142.46,10.03]
[1641699902933,11.12835033,142.56,142.46,10.03]
[1641699903135,3.80284663,142.56,142.46,10.03]
[1641699903736,3.80284663,142.55,142.46,10.03]
[1641699903935,14.33044663,142.55,142.46,20.5583]
[1641699904638,10.5276,142.55,142.46,20.5583]
[1641699905639,10.5276,142.55,142.46,10.03]
[1641699906644,11.73422073,142.55,142.41,10.03]
[1641699906845,22.6171,142.54,142.41,10.03]
[1641699907045,10.5342,142.48,142.41,10.03]
[1641699907245,10.5342,142.48,142.39,98.748]
[1641699907649,10.5342,142.48,142.4,29.07191263]
[1641699907849,10.5342,142.48,142.4,39.60481263]
[1641699908049,22.6171,142.54,142.4,39.60481263]
[1641699908252,32.6471,142.54,142.41,24.2784]
[1641699908650,3.0,142.53,142.41,24.2784]
[1641699909060,3.0,142.53,142.47,10.5274]
[1641699909265,32.6471,142.54,142.47,10.5274]
[1641699909871,32.6471,142.54,142.41,24.2784]
[1641699910068,32.6471,142.54,142.42,3.0]
[1641699910468,43.1752,142.54,142.42,38.0956]
[1641699910868,44.38182073,142.54,142.4,39.10191263]
[1641699911078,44.38182073,142.54,142.4,29.07191263]
[1641699911474,44.38182073,142.54,142.4,39.60491263]
[1641699911671,3.79567342,142.53,142.4,49.63491263]
[1641699911873,3.79567342,142.53,142.41,3.0]
[1641699912073,3.79567342,142.53,142.42,10.03]
[1641699912272,3.79567342,142.53,142.42,10.29]
[1641699912473,24.8004,142.55,142.47,10.5279]
[1641699912874,24.8004,142.55,142.46,27.81833089]
[1641699913074,24.8004,142.55,142.42,10.03]
[1641699913274,22.8234,142.54,142.42,10.03]
[1641699913475,35.1056,142.53,142.42,20.5615]
[1641699913674,24.03002073,142.54,142.42,10.03]
[1641699913875,3.80880912,142.53,142.42,10.03]
[1641699914278,5.01542985,142.53,142.42,10.03]
[1641699914478,3.0,142.52,142.42,10.03]
[1641699914679,3.0,142.52,142.42,20.5614]
[1641699914878,3.80880912,142.53,142.42,20.5614]
[1641699915279,22.8234,142.54,142.42,20.5614]
[1641699915881,57.9259,142.54,142.42,20.5614]
[1641699916582,54.97567486,142.53,142.42,20.5614]
[1641699916779,58.78646056,142.53,142.42,20.5614]
[1641699916978,10.5303,142.51,142.42,20.5614]
[1641699917581,22.8234,142.54,142.42,20.5614]
[1641699918183,14.64411787,142.53,142.42,20.5614]
[1641699918585,22.8234,142.54,142.42,20.5614]
[1641699918785,10.5284,142.54,142.43,3.25]
[1641699918984,14.64334575,142.56,142.48,10.5272]
[1641699920611,25.16994575,142.56,142.47,35.43117779]
[1641699922313,25.16994575,142.56,142.47,10.5279]
[1641699923118,3.90072699,142.55,142.47,10.5279]
[1641699923819,3.90072699,142.55,142.47,20.5579]
[1641699924018,14.64334575,142.56,142.47,20.5579]
[1641699924225,14.64334575,142.56,142.47,25.7739]
[1641699924519,14.64334575,142.56,142.48,3.51]
[1641699924720,5.89533773,142.6,142.49,10.03]
[1641699924919,5.89533773,142.6,142.5,0.51]
[1641699925120,5.89533773,142.6,142.54,35.0657]
[1641699925320,5.89533773,142.6,142.54,40.1147]
[1641699925520,5.89533773,142.6,142.55,3.0]
[1641699925719,5.89533773,142.6,142.58,10.5197]
[1641699925920,5.89533773,142.6,142.59,3.03219995]
[1641699926221,3.97378421,142.65,142.59,3.03219995]
[1641699927923,5.89533773,142.68,142.59,3.03219995]
[1641699928832,9.86912194,142.68,142.59,3.03219995]
[1641699929629,37.19890146,142.7,142.59,3.03219995]
[1641699930431,10.5183,142.69,142.59,13.55109995]
[1641699930631,10.5183,142.69,142.59,3.03219995]
[1641699930832,11.73295036,142.69,142.59,3.03219995]
[1641699931261,10.5183,142.69,142.59,3.03219995]
[1641699931632,11.73295036,142.69,142.59,3.03219995]
[1641699932234,54.91789538,142.68,142.59,3.03219995]
[1641699932437,10.521,142.64,142.59,3.03219995]
[1641699932636,10.521,142.64,142.58,77.7671]
[1641699933038,25.8513,142.67,142.58,88.2869]
[1641699933437,22.8513,142.67,142.58,88.2869]
[1641699934239,10.5196,142.66,142.58,88.2869]
[1641699934839,10.5196,142.66,142.58,77.7671]
[1641699935241,54.91913343,142.65,142.58,77.7671]
[1641699935441,10.5203,142.65,142.58,77.7671]
[1641699936540,10.519,142.66,142.58,77.7671]
[1641699936741,22.8513,142.67,142.58,77.7671]
[1641699937842,33.3697,142.67,142.58,88.2865]
[1641699938343,34.58435036,142.67,142.58,88.2865]
[1641699938543,34.58435036,142.67,142.58,77.7671]
[1641699939445,34.58435036,142.67,142.55,59.7457]
[1641699940046,34.58435036,142.67,142.57,10.5204]
[1641699940244,34.58435036,142.67,142.55,98.6534]
[1641699940644,10.5215,142.63,142.55,98.6534]
[1641699940845,3.0,142.66,142.55,73.971]
[1641699941044,1.21465036,142.63,142.55,73.971]
[1641699941249,11.24465036,142.63,142.49,23.6817]
[1641699941447,23.2684,142.62,142.46,10.03]
[1641699941645,33.2984,142.62,142.46,39.4133069]
[1641699941846,10.5294,142.6,142.46,39.4133069]
[1641699942047,22.7345,142.59,142.46,39.4133069]
[1641699942245,23.94915036,142.59,142.46,39.4133069]
[1641699942444,23.94915036,142.59,142.46,10.03]
[1641699942445,1.21465036,142.58,142.46,10.03]
[1641699942847,21.77545036,142.58,142.43,10.03]
[1641699943047,45.12435036,142.58,142.43,10.03]
[1641699943245,1.21465036,142.57,142.43,10.03]
[1641699943447,10.03,142.56,142.43,10.03]
[1641699943861,1.21465036,142.55,142.43,10.03]
[1641699944053,10.5324,142.49,142.43,10.03]
[1641699946054,10.5324,142.49,142.43,20.5609]
[1641699946685,35.102,142.53,142.43,20.5609]
[1641699946892,23.34,142.55,142.43,20.5609]
[1641699947386,33.3789,142.58,142.43,22.21435313]
[1641699947588,24.1396,142.57,142.44,24.0449]
[1641699947789,10.5288,142.52,142.44,24.0449]
[1641699949789,10.5288,142.52,142.44,34.575]
[1641699950490,10.5288,142.52,142.44,44.605]
[1641699950890,10.5288,142.52,142.44,10.03]
[1641699953792,10.5288,142.52,142.44,20.56]
[1641699956193,10.5281,142.53,142.44,20.56]
[1641699959395,10.5281,142.53,142.44,10.03]
[1641699961400,10.5281,142.53,142.41,24.1894]
[1641699961700,21.77275036,142.53,142.38,34.1236]
[1641699961901,10.5366,142.45,142.38,34.1236]
[1641699962102,10.5366,142.45,142.38,10.03]
[1641699969008,10.5336,142.46,142.38,10.03]
[1641699969208,1.9133646,142.48,142.38,10.03]
[1641699969609,1.9133646,142.48,142.39,0.26]
[1641699969810,1.9133646,142.48,142.43,10.5304]
[1641699970007,1.9133646,142.48,142.44,27.94645571]
[1641699970508,12.4429646,142.52,142.44,27.94645571]
[1641699971907,12.4429646,142.52,142.44,38.47605571]
[1641699972208,12.4429646,142.52,142.44,20.5596]
[1641699972609,12.4429646,142.52,142.44,10.03]
[1641699973607,1.9133646,142.51,142.44,10.03]
[1641699973810,12.4432646,142.51,142.44,10.03]
[1641699974008,1.9133646,142.51,142.44,10.03]
[1641699974508,1.9133646,142.51,142.45,5.16345313]
[1641699974709,1.9133646,142.51,142.46,10.03]
[1641699974912,1.9133646,142.51,142.47,0.51]
[1641699975214,1.9133646,142.51,142.48,72.23554552]
[1641699975413,1.9133646,142.56,142.52,10.5234]
[1641699976011,1.9133646,142.56,142.54,30.44010903]
[1641699976211,3.80196685,142.59,142.54,30.44010903]
[1641699976212,1.9133646,142.58,142.54,30.44010903]
[1641699976612,1.9133646,142.58,142.54,40.95950903]
[1641699977015,1.9133646,142.58,142.55,3.0]
[1641699977212,1.9133646,142.58,142.56,3.03219995]
[1641699977415,1.9133646,142.59,142.56,3.03219995]
[1641699977712,1.9133646,142.59,142.57,10.5178]
[1641699978313,54.9594167,142.61,142.55,10.03]
[1641699978915,54.9594167,142.61,142.56,10.5181]
[1641699980346,54.9594167,142.61,142.55,10.03]
[1641699981349,65.4806167,142.61,142.55,10.03]
[1641699981545,65.4806167,142.61,142.51,10.03]
[1641699981745,67.3939813,142.61,142.51,10.03]
[1641699982347,65.4806167,142.61,142.51,10.03]
[1641699983253,67.3939813,142.61,142.51,10.03]
[1641699983948,1.9133646,142.6,142.51,10.03]
[1641699984148,10.5227,142.59,142.51,10.03]
[1641699984847,1.9133646,142.6,142.51,10.03]
[1641699985065,54.9594167,142.61,142.47,34.8005]
[1641699985066,56.8727813,142.61,142.47,34.8005]
[1641699985249,23.8252,142.6,142.47,34.8005]
[1641699985549,1.9133646,142.58,142.47,34.8005]
[1641699986851,12.4369646,142.58,142.47,34.8005]
[1641699987053,3.0,142.57,142.47,10.03]
[1641699987251,12.4369646,142.58,142.47,10.03]
[1641699989857,54.95673202,142.57,142.47,10.03]
[1641699990658,54.95673202,142.57,142.44,10.03]
[1641699990858,46.6784,142.56,142.44,10.03]
[1641699991061,101.64637478,142.56,142.44,10.03]
[1641699991459,46.6784,142.56,142.44,10.03]
[1641699991662,1.9133646,142.54,142.44,10.03]
[1641699992261,46.6784,142.56,142.44,10.03]
[1641699992761,46.6784,142.56,142.44,33.4527]
[1641699993761,1.9133646,142.57,142.45,1.65345313]
[1641699994061,1.9133646,142.57,142.46,10.03]
[1641699994461,1.9133646,142.57,142.47,0.51]
[1641699994662,1.9133646,142.59,142.47,10.54]
[1641699994863,1.9133646,142.59,142.47,15.19345313]
[1641699995262,25.7575646,142.6,142.47,15.19345313]
[1641699995762,10.523,142.59,142.47,15.19345313]
[1641699995962,10.523,142.59,142.47,13.29]
[1641699996165,10.523,142.59,142.47,10.29]
[1641699996464,25.7575646,142.6,142.47,10.29]
[1641699996868,36.2802646,142.6,142.47,10.29]
[1641699997265,1.9133646,142.58,142.47,10.29]
[1641699998466,1.9133646,142.58,142.47,10.03]
[1641699998667,10.5235,142.58,142.47,10.03]
[1641699999295,1.9133646,142.57,142.47,10.03]
[1641699999897,12.4382646,142.57,142.47,10.03]
[1641700000104,1.9133646,142.55,142.47,10.03]
[1641700001503,1.9133646,142.55,142.48,0.25]
[1641700001700,1.9133646,142.55,142.5,23.11434722]
[1641700002102,26.38896685,142.58,142.49,10.03]
[1641700002103,35.0239646,142.58,142.49,10.03]
[1641700003707,1.9133646,142.57,142.49,10.03]
[1641700003904,12.4374646,142.57,142.49,10.03]
[1641700004203,1.9133646,142.57,142.49,10.03]
[1641700004606,24.5003646,142.58,142.49,10.03]
[1641700005106,1.9133646,142.58,142.49,10.03]
[1641700005308,1.9133646,142.57,142.5,0.26]
[1641700005606,1.9133646,142.57,142.5,10.29]
[1641700005806,1.9133646,142.57,142.5,10.03]
[1641700006009,1.9133646,142.58,142.51,3.26]
[1641700006208,1.9133646,142.58,142.53,29.52377816]
[1641700006407,1.9133646,142.58,142.54,10.03]
[1641700007007,54.95805127,142.61,142.54,10.03]
[1641700007608,10.522,142.6,142.54,10.03]
[1641700007810,10.522,142.6,142.54,34.21458911]
[1641700008107,12.4353646,142.6,142.54,34.21458911]
[1641700008307,12.4353646,142.6,142.54,10.03]
[1641700009310,1.9133646,142.59,142.54,10.03]
[1641700009710,12.4373646,142.59,142.54,10.03]
[1641700010109,90.03875127,142.61,142.54,10.03]
[1641700010110,1.9133646,142.58,142.54,10.03]
[1641700012010,12.4367646,142.58,142.54,10.03]
[1641700012311,1.9133646,142.58,142.54,10.03]
[1641700013713,1.9133646,142.59,142.54,10.03]
[1641700014516,1.9133646,142.6,142.54,10.03]
[1641700015215,12.4352646,142.6,142.54,10.03]
[1641700015816,1.9133646,142.59,142.54,10.03]
[1641700016617,54.95805127,142.61,142.54,10.03]
[1641700017550,56.87141587,142.61,142.54,10.03]
[1641700018019,54.95805127,142.61,142.54,10.03]
[1641700018620,54.95805127,142.61,142.55,3.0]
[1641700021122,54.95805127,142.61,142.55,13.5197]
[1641700021922,54.95805127,142.61,142.56,25.15004237]
[1641700022123,54.95805127,142.61,142.56,46.20894237]
[1641700022523,54.95805127,142.61,142.57,3.0]
[1641700022723,9.24075803,142.63,142.57,3.0]
[1641700022924,1.9133646,142.63,142.57,3.0]
[1641700023427,10.5189,142.64,142.56,45.95894237]
[1641700023428,10.5189,142.64,142.56,35.44004237]
[1641700024026,12.4322646,142.64,142.56,35.44004237]
[1641700024926,1.9133646,142.63,142.56,35.44004237]
[1641700025224,12.4329646,142.63,142.56,35.44004237]
[1641700025727,10.5196,142.63,142.56,35.44004237]
[1641700026624,10.5196,142.63,142.57,3.0]
[1641700026827,10.5196,142.63,142.57,13.03]
[1641700027026,10.5196,142.63,142.57,10.03]
[1641700027225,12.4329646,142.63,142.57,10.03]
[1641700027827,1.9133646,142.62,142.57,10.03]
[1641700028126,12.4341646,142.62,142.57,10.03]
[1641700029827,1.9133646,142.62,142.57,10.03]
[1641700030026,1.9133646,142.6,142.57,10.03]
[1641700030428,3.03219997,142.59,142.57,10.03]
[1641700031027,1.9133646,142.6,142.57,10.03]
[1641700032626,1.9133646,142.6,142.58,3.03219995]
[1641700032826,1.9133646,142.61,142.58,3.03219995]
[1641700033527,1.9133646,142.6,142.58,3.03219995]
[1641700034327,1.9133646,142.61,142.58,3.03219995]
[1641700035229,1.9133646,142.63,142.58,3.03219995]
[1641700036129,12.4331646,142.63,142.58,3.03219995]
[1641700036533,12.4331646,142.63,142.55,10.03]
[1641700036933,1.9133646,142.6,142.55,10.03]
[1641700037134,10.5252,142.59,142.55,10.03]
[1641700037832,1.9133646,142.58,142.55,10.03]
[1641700038233,12.4367646,142.58,142.55,10.03]
[1641700038433,3.03219997,142.57,142.51,82.9454]
[1641700038632,3.03219997,142.57,142.51,10.03]
[1641700038836,3.03219997,142.57,142.49,7.677]
[1641700039734,1.9133646,142.54,142.49,7.677]
[1641700039934,10.5271,142.53,142.49,7.677]
[1641700042365,10.5265,142.54,142.49,7.677]
[1641700043765,1.9133646,142.56,142.49,17.707]
[1641700043965,1.9133646,142.56,142.5,5.16345313]
[1641700044166,1.9133646,142.56,142.51,35.58785668]
[1641700044568,1.9133646,142.56,142.52,3.26]
[1641700044868,1.9133646,142.6,142.53,10.03]
[1641700045167,12.4352646,142.6,142.53,10.03]
[1641700045867,10.5219,142.6,142.53,10.03]
[1641700046067,10.5219,142.6,142.54,0.26]
[1641700047268,10.5219,142.6,142.53,20.5514]
[1641700047469,10.5219,142.6,142.53,10.03]
[1641700048271,1.9133646,142.59,142.53,10.03]
[1641700048674,12.4370646,142.59,142.53,10.03]
[1641700051482,12.4370646,142.59,142.5,10.03]
[1641700051880,1.9133646,142.58,142.5,10.03]
[1641700052079,10.5263,142.54,142.5,10.03]
[1641700058584,10.5263,142.54,142.47,10.03]
[1641700058883,10.5263,142.54,142.47,13.03]
[1641700059083,10.5263,142.54,142.47,10.03]
[1641700059485,10.5263,142.54,142.47,20.5562]
[1641700059887,10.5254,142.55,142.47,20.5562]
[1641700060386,1.9133646,142.56,142.47,20.5562]
[1641700061488,12.4382646,142.56,142.47,20.5562]
[1641700063488,12.4382646,142.56,142.47,10.03]
[1641700064787,1.9133646,142.55,142.47,10.03]
[1641700065590,1.9133646,142.55,142.44,10.03]
[1641700066389,26.8293646,142.55,142.44,10.03]
[1641700066590,26.8293646,142.55,142.45,3.0]
[1641700066990,1.9133646,142.52,142.44,10.03]
[1641700067792,10.5288,142.51,142.44,20.5584]
[1641700068798,10.5288,142.51,142.45,0.26]
[1641700069492,10.5288,142.51,142.46,10.03]
[1641700074035,10.5288,142.51,142.42,10.03]
[1641700074234,42.8186,142.51,142.42,10.03]
[1641700074634,42.8186,142.51,142.4,79.7457]
[1641700074834,42.8186,142.51,142.38,12.00673117]
[1641700075438,1.9133646,142.49,142.38,10.03]
[1641700075638,10.5344,142.44,142.38,10.03]
[1641700080944,10.5344,142.44,142.39,3.26]
[1641700081140,10.5329,142.45,142.39,13.29]
[1641700081439,10.5329,142.45,142.39,13.03]
[1641700081640,10.5329,142.45,142.39,10.03]
[1641700086356,10.5329,142.45,142.39,20.5626]
[1641700088863,24.8786,142.47,142.39,20.5626]
[1641700089062,35.4103,142.47,142.39,20.5626]
[1641700093896,35.4103,142.47,142.39,10.03]
[1641700095697,39.0,142.46,142.35,10.03]
[1641700095897,10.5379,142.41,142.34,0.8302419]
[1641700096097,18.6789,142.41,142.34,0.8302419]
[1641700097698,3.0,142.4,142.34,0.8302419]
[1641700097901,10.5401,142.37,142.34,0.8302419]
[1641700098300,3.03219997,142.36,142.34,0.8302419]
[1641700099001,13.57229997,142.36,142.34,0.8302419]
[1641700099902,13.57229997,142.36,142.28,138.51488971]
[1641700100102,13.57229997,142.36,142.27,1.97673117]
[1641700100705,1.08064924,142.35,142.27,1.97673117]
[1641700101004,10.5447,142.31,142.27,1.97673117]
[1641700101204,10.5447,142.31,142.26,10.03]
[1641700101409,10.5447,142.31,142.26,8.53]
[1641700102205,10.5447,142.31,142.23,83.31842902]
[1641700102406,10.5447,142.31,142.24,3.0]
[1641700102604,10.5447,142.31,142.23,72.85512902]
[1641700103403,10.5447,142.31,142.23,71.85512902]
[1641700104008,10.5447,142.31,142.22,10.03]
[1641700106410,8.95791937,142.22,142.17,12.00673117]
[1641700106611,10.5531,142.2,142.17,12.00673117]
[1641700106911,3.03219997,142.19,142.17,12.00673117]
[1641700107909,3.03219997,142.19,142.17,10.03]
[1641700108109,10.5546,142.18,142.17,10.03]
[1641700109310,10.5546,142.18,142.14,10.03]
[1641700109509,10.5546,142.18,142.14,13.03]
[1641700111714,10.5546,142.18,142.14,10.03]
[1641700112516,8.95791937,142.22,142.14,10.03]
[1641700112517,10.5525,142.19,142.14,10.03]
[1641700119151,10.5516,142.2,142.14,10.03]
[1641700119350,8.95791937,142.22,142.14,10.03]
[1641700119351,8.95791937,142.22,142.14,17.704]
[1641700119551,8.95791937,142.22,142.15,0.25]
[1641700119751,8.95791937,142.22,142.16,38.57049474]
[1641700119951,6.95791937,142.22,142.19,10.5466]
[1641700120151,6.95791937,142.22,142.2,3.03219995]
[1641700120753,5.01852181,142.22,142.2,3.03219995]
[1641700120952,60.0924,142.31,142.2,3.03219995]
[1641700121253,10.5454,142.29,142.23,10.5454]
[1641700121952,35.1511,142.33,142.23,10.5454]
[1641700122652,24.8557,142.34,142.23,20.5754]
[1641700122855,24.8557,142.34,142.23,25.9904]
[1641700123052,24.8557,142.34,142.24,0.26]
[1641700123254,127.3585,142.37,142.28,10.5414]
[1641700123452,116.8585,142.37,142.28,10.5414]
[1641700123653,10.5397,142.37,142.28,10.5414]
[1641700123853,10.5397,142.37,142.29,10.03]
[1641700124252,10.5397,142.37,142.29,20.571]
[1641700125457,10.5397,142.37,142.29,10.03]
[1641700130365,10.0397,142.37,142.29,10.03]
[1641700130765,10.0397,142.37,142.26,87.2684]
[1641700131466,11.24894252,142.37,142.26,87.2684]
[1641700131665,3.0,142.36,142.26,87.2684]
[1641700131865,14.64996243,142.39,142.27,3.25]
[1641700132066,1.9133646,142.38,142.28,40.04755568]
[1641700132266,1.9133646,142.38,142.28,43.04755568]
[1641700132465,14.64996243,142.39,142.29,2.16345313]
[1641700132669,3.80196685,142.41,142.31,28.19452917]
[1641700132872,35.24556685,142.47,142.35,30.72456781]
[1641700133068,10.77896685,142.47,142.36,10.03]
[1641700133469,10.77896685,142.47,142.38,26.0474094]
[1641700133669,10.77896685,142.47,142.39,10.03]
[1641700133968,6.977,142.47,142.43,10.5272]
[1641700134372,6.977,142.47,142.44,3.0]
[1641700134573,6.977,142.47,142.42,45.1205]
[1641700134774,3.03219997,142.46,142.38,10.03]
[1641700134971,3.03219997,142.46,142.38,13.03]
[1641700135181,13.56489997,142.46,142.38,23.5633]
[1641700135572,13.56489997,142.46,142.38,20.5633]
[1641700137373,3.03219997,142.46,142.38,20.5633]
[1641700138604,13.56469997,142.46,142.38,10.03]
[1641700139008,13.56469997,142.46,142.34,10.03]
[1641700140611,10.5383,142.4,142.34,10.03]
[1641700145019,10.5383,142.4,142.34,41.91756539]
[1641700145314,35.1199,142.45,142.34,10.03]
[1641700146214,10.5359,142.42,142.34,20.5662]
[1641700147515,10.5359,142.42,142.34,10.03]
[1641700148516,10.5344,142.44,142.34,20.567]
[1641700152014,10.5344,142.44,142.34,10.03]
[1641700154315,10.5344,142.44,142.34,20.5668]
[1641700159324,10.5344,142.44,142.35,26.70231065]
[1641700159524,10.5344,142.44,142.38,10.5336]
[1641700159925,10.5344,142.44,142.35,36.73231065]
[1641700160527,10.5344,142.44,142.36,10.5347]
[1641700160726,10.5344,142.44,142.37,10.03]
[1641700165253,14.64915815,142.43,142.37,10.03]
[1641700165453,10.5369,142.4,142.37,10.03]
[1641700165653,10.5369,142.4,142.33,10.03]
[1641700168557,10.5369,142.4,142.3,10.03]
[1641700168758,33.7366,142.4,142.3,10.03]
[1641700169162,7.33685885,142.39,142.3,10.03]
[1641700169360,10.5417,142.35,142.3,10.03]
[1641700170363,10.5417,142.35,142.27,10.03]
[1641700171161,3.0,142.34,142.27,10.03]
[1641700171361,3.0,142.34,142.25,73.8193]
[1641700171362,10.5452,142.31,142.23,10.03]
[1641700173262,10.5452,142.31,142.24,30.05776515]
[1641700173564,10.5452,142.31,142.24,40.08776515]
[1641700174262,10.5452,142.31,142.24,10.03]
[1641700185973,10.5424,142.32,142.24,10.03]
[1641700187775,10.5424,142.32,142.24,20.5738]
[1641700188382,10.5424,142.32,142.25,29.25857593]
[1641700188578,10.5424,142.32,142.25,39.28857593]
[1641700189381,10.5424,142.32,142.25,10.03]
[1641700189781,10.5424,142.32,142.26,10.543]
[1641700189983,10.5424,142.32,142.23,45.1712]
[1641700190211,10.5424,142.32,142.23,10.03]
[1641700190910,10.5424,142.32,142.25,10.5437]